fUST/lending_fUST_20250609
["ID","MTS","AMOUNT","RATE_DAILY","PERIOD"]
[365056587,1749430242114,-727.28,0.00023194,2]
[365056588,1749430242126,-202.74427911,0.00023245,8]
[365056589,1749430242136,-1000.0,0.00023248,2]
[365056590,1749430242147,-499.55182448,0.00023248,2]
[365056591,1749430242157,-841.9,0.00023285,4]
[365056592,1749430242166,-602.89,0.00023285,4]
[365056593,1749430242176,-1020.87,0.00023285,4]
[365056594,1749430242187,-962.15,0.00023285,4]
[365056595,1749430242197,-506.96,0.00023285,4]
[365056596,1749430242207,-522.51,0.00023286,4]
[365056597,1749430242217,-1331.43,0.00023286,4]
[365056598,1749430242228,-440.0,0.00023286,4]
[365056599,1749430242239,-477.51,0.00023286,4]
[365056600,1749430242250,-440.0,0.00023286,4]
[365056601,1749430242260,-440.0,0.00023286,4]
[365056602,1749430242270,-440.0,0.00023286,4]
[365056603,1749430242282,-1068.17,0.00023286,4]
[365056604,1749430242293,-200.0,0.00023286,2]
[365056605,1749430242303,-202.74427911,0.00023383,9]
[365056606,1749430242315,-162.13607399,0.00023397,2]
[365056607,1749430242326,-5000.0,0.00023429,2]
[365056608,1749430242336,-202.74427911,0.00023521,9]
[365056609,1749430242346,-841.9,0.00023559,4]
[365056610,1749430242356,-602.89,0.00023559,4]
[365056611,1749430242365,-1020.87,0.00023559,4]
[365056612,1749430242375,-962.15,0.00023559,4]
[365056613,1749430242385,-506.96,0.00023559,4]
[365056614,1749430242395,-500.0,0.0002356,2]
[365056615,1749430242404,-500.0,0.0002356,2]
[365056616,1749430242414,-522.51,0.0002356,4]
[365056617,1749430242424,-1331.43,0.0002356,4]
[365056618,1749430242433,-521.94,0.0002356,4]
[365056619,1749430242443,-500.0,0.0002356,2]
[365056620,1749430242453,-477.51,0.0002356,4]
[365056621,1749430242462,-440.0,0.0002356,4]
[365056622,1749430242472,-440.0,0.0002356,4]
[365056623,1749430242482,-440.0,0.0002356,4]
[365056624,1749430242492,-1068.17,0.0002356,4]
[365056625,1749430242502,-200.0,0.00023561,2]
[365056626,1749430242511,-200.0,0.00023561,2]
[365056627,1749430242521,-200.0,0.00023561,2]
[365056628,1749430242531,-200.0,0.00023561,2]
[365056629,1749430242540,-200.0,0.00023561,2]
[365056630,1749430242551,-200.0,0.00023561,2]
[365056631,1749430242560,-200.0,0.00023561,2]
[365056632,1749430242570,-500.0,0.00023561,2]
[365056633,1749430242579,-600.0,0.00023579,2]
[365056634,1749430242589,-318.62,0.000236,7]
[365056635,1749430242598,-364.8515477,0.00023616,2]
[365056636,1749430242607,-364.8515477,0.00023616,2]
[365056637,1749430242616,-364.8515477,0.00023616,2]
[365056638,1749430242625,-963.0,0.00023652,2]
[365056639,1749430242634,-652.0,0.00023652,2]
[365056640,1749430242644,-2159.0,0.00023652,2]
[365056641,1749430242654,-405.0,0.00023652,2]
[365056642,1749430242664,-202.74427911,0.00023659,9]
[365056643,1749430242674,-530.34,0.00023688,10]
[365056644,1749430242683,-3894.42,0.00023688,10]
[365056645,1749430242693,-2000.0,0.00023698,7]
[365056646,1749430242703,-2000.0,0.00023698,7]
[365056647,1749430242712,-1000.0,0.00023698,7]
[365056648,1749430242721,-162.13607399,0.00023699,2]
[365056649,1749430242731,-97703.23690009,0.000237,2]
[365056650,1749430242740,-546.72605437,0.00023773,2]
[365056651,1749430242750,-732.36649404,0.00023773,2]
[365056652,1749430242759,-1000.0,0.00023796,2]
[365056653,1749430242769,-202.74427911,0.00023797,9]
[365056654,1749430242779,-269356.72389938,0.000238,3]
[365056659,1749430242898,-270.74,0.00021084,10]
[365056660,1749430242908,-346.67488445,0.000238,3]
[365056661,1749430242919,-1289.59986369,0.000238,3]
[365056662,1749430242931,-1703.25232935,0.000238,3]
[365056663,1749430242943,-350.8164,0.000238,3]
[365056665,1749430243313,-270.46301247,0.000238,3]
[365056683,1749430246359,-366.2,0.0001945,2]
[365056690,1749430246412,-73.8,0.0001945,2]
[365056692,1749430246422,-581.46,0.00019724,2]
[365056694,1749430246433,-22203.01056343,0.000238,3]
[365056931,1749430382419,218.08523122,0.00018,2]
[365056932,1749430382447,256.91476878,0.00018,2]
[365056933,1749430546164,1000.0,0.00024547,30]
[365056934,1749430555108,1000.0,0.00024547,30]
[365056939,1749431370467,192.296079,0.00013699,2]
[365056957,1749431432354,-158.68,0.00018225,2]
[365056959,1749431432365,-300.0,0.00019448,2]
[365056961,1749431432375,-300.0,0.00019448,2]
[365056963,1749431432385,-300.0,0.00019448,2]
[365056965,1749431432396,-798.39627,0.00019448,2]
[365056968,1749431432413,-103.60373,0.00019448,2]
[365056970,1749431432424,-440.0,0.00019449,2]
[365056971,1749431432436,-440.0,0.00019449,2]
[365056972,1749431432447,-440.0,0.0001945,2]
[365056973,1749431432458,-317.36,0.00019882,2]
[365056974,1749431432468,-192.296079,0.00020187,2]
[365056975,1749431432477,-423.98131849,0.00020334,2]
[365056976,1749431432487,-834.62475315,0.00020334,2]
[365056977,1749431432496,-213.05153702,0.00020334,2]
[365056978,1749431432506,-229.60437222,0.00020334,2]
[365056979,1749431432515,-160.0,0.00020334,2]
[365056980,1749431432525,-440.0,0.00020543,2]
[365056981,1749431432535,-440.0,0.00020543,2]
[365056982,1749431432545,-440.0,0.00020543,2]
[365056983,1749431432557,-440.0,0.00020543,2]
[365056984,1749431432566,-440.0,0.00020543,2]
[365056985,1749431432576,-440.0,0.00020543,2]
[365056986,1749431432586,-440.0,0.00020543,2]
[365056987,1749431432597,-440.0,0.00020543,2]
[365056988,1749431432607,-440.0,0.00020543,2]
[365056989,1749431432618,-834.38,0.00020543,2]
[365056990,1749431432628,-440.0,0.00020543,2]
[365056991,1749431432638,-440.0,0.00020543,2]
[365056992,1749431432647,-440.0,0.00020543,2]
[365056993,1749431432657,-440.0,0.00020543,2]
[365056994,1749431432805,-440.0,0.00020543,2]
[365056995,1749431432826,-440.0,0.00020543,2]
[365056996,1749431432837,-483.97,0.00020543,2]
[365056997,1749431432847,-440.0,0.00020543,2]
[365056998,1749431432856,-495.55,0.00020543,2]
[365056999,1749431432866,-440.0,0.00020543,2]
[365057000,1749431432876,-440.0,0.00020543,2]
[365057001,1749431432886,-440.0,0.00020543,2]
[365057002,1749431432895,-440.0,0.00020543,2]
[365057003,1749431432905,-440.0,0.00020543,2]
[365057004,1749431432915,-440.0,0.00020543,2]
[365057005,1749431432925,-900.0,0.00020765,2]
[365057006,1749431432934,-155.66637711,0.0002079,2]
[365057007,1749431432944,-440.0,0.00020817,2]
[365057008,1749431432953,-440.0,0.00020817,2]
[365057009,1749431432962,-98.85481708,0.00020817,2]
[365057010,1749431432975,-341.14518292,0.00020817,2]
[365057011,1749431432984,-440.0,0.00020817,2]
[365057012,1749431432994,-834.38,0.00020817,2]
[365057013,1749431433004,-305.49880443,0.00020817,2]
[365057023,1749431438362,-160.0,0.00020333,2]
[365057024,1749431438373,-636.05,0.00020543,2]
[365057025,1749431438382,-134.50119557,0.00020817,2]
[365057026,1749431438392,-440.0,0.00020817,2]
[365057027,1749431438403,-440.0,0.00020817,2]
[365057028,1749431438413,-440.0,0.00020817,2]
[365057029,1749431438424,-483.97,0.00020817,2]
[365057030,1749431438435,-440.0,0.00020817,2]
[365057031,1749431438446,-495.55,0.00020817,2]
[365057032,1749431438458,-440.0,0.00020817,2]
[365057033,1749431438469,-440.0,0.00020817,2]
[365057034,1749431438480,-440.0,0.00020817,2]
[365057035,1749431438489,-440.0,0.00020817,2]
[365057036,1749431438499,-440.0,0.00020817,2]
[365057037,1749431438509,-636.05,0.00020817,2]
[365057038,1749431438520,-1558.05818501,0.00020877,2]
[365057039,1749431438531,-440.0,0.0002089,2]
[365057040,1749431438540,-440.0,0.0002089,2]
[365057041,1749431438550,-440.0,0.0002089,2]
[365057042,1749431438560,-440.0,0.0002089,2]
[365057043,1749431438571,-440.0,0.0002089,2]
[365057044,1749431438580,-440.0,0.0002089,2]
[365057045,1749431438591,-440.0,0.0002089,2]
[365057046,1749431438601,-440.0,0.0002089,2]
[365057047,1749431438611,-420.0,0.0002089,2]
[365057048,1749431438621,-440.0,0.0002089,2]
[365057049,1749431438631,-420.0,0.0002089,2]
[365057050,1749431438641,-687.16,0.0002089,2]
[365057051,1749431438651,-208.52662532,0.000209,4]
[365057052,1749431438660,-185.0,0.00021,3]
[365057053,1749431438670,-185.0,0.00021,3]
[365057054,1749431438680,-440.0,0.00021091,2]
[365057055,1749431438691,-440.0,0.00021091,2]
[365057056,1749431438702,-480.11,0.00021091,2]
[365057057,1749431438715,-834.38,0.00021091,2]
[365057058,1749431438725,-440.0,0.00021091,2]
[365057059,1749431438734,-521.94,0.00021091,2]
[365057060,1749431438744,-440.0,0.00021091,2]
[365057061,1749431438755,-440.0,0.00021091,2]
[365057062,1749431438765,-483.97,0.00021091,2]
[365057063,1749431438775,-440.0,0.00021091,2]
[365057064,1749431438788,-495.55,0.00021091,2]
[365057065,1749431438799,-440.0,0.00021091,2]
[365057066,1749431438809,-440.0,0.00021091,2]
[365057067,1749431438818,-440.0,0.00021091,2]
[365057068,1749431438828,-440.0,0.00021091,2]
[365057069,1749431438838,-636.05,0.00021091,2]
[365057070,1749431438847,-208.52662516,0.00021135,4]
[365057071,1749431438857,-253.38,0.00021164,2]
[365057072,1749431438867,-295.09,0.00021164,2]
[365057073,1749431438877,-440.0,0.00021164,2]
[365057074,1749431438886,-440.0,0.00021164,2]
[365057075,1749431438896,-687.16,0.00021164,2]
[365057076,1749431438906,-420.0,0.00021189,2]
[365057077,1749431438916,-440.0,0.00021365,2]
[365057078,1749431438925,-834.38,0.00021365,2]
[365057079,1749431438934,-440.0,0.00021365,2]
[365057080,1749431438943,-440.0,0.00021365,2]
[365057081,1749431438953,-440.0,0.00021365,2]
[365057082,1749431438962,-483.97,0.00021365,2]
[365057083,1749431438972,-440.0,0.00021365,2]
[365057084,1749431438982,-495.55,0.00021365,2]
[365057085,1749431438991,-440.0,0.00021365,2]
[365057086,1749431439001,-440.0,0.00021365,2]
[365057087,1749431439010,-440.0,0.00021365,2]
[365057088,1749431439020,-440.0,0.00021365,2]
[365057089,1749431439030,-208.52662516,0.00021371,5]
[365057090,1749431439039,-440.0,0.00021438,2]
[365057091,1749431439049,-687.16,0.00021438,2]
[365057092,1749431439058,-221.87044723,0.00021515,2]
[365057093,1749431439068,-476.04,0.00021538,2]
[365057094,1749431439077,-208.52662516,0.00021606,5]
[365057095,1749431439088,-440.0,0.00021639,2]
[365057096,1749431439098,-834.38,0.00021639,2]
[365057097,1749431439109,-440.0,0.00021639,2]
[365057098,1749431439119,-351.78,0.00021639,2]
[365057099,1749431439128,-440.0,0.00021639,2]
[365057100,1749431439139,-483.97,0.00021639,2]
[365057101,1749431439148,-440.0,0.00021639,2]
[365057102,1749431439157,-495.55,0.00021639,2]
[365057103,1749431439167,-440.0,0.00021639,2]
[365057104,1749431439177,-440.0,0.00021639,2]
[365057105,1749431439187,-440.0,0.00021639,2]
[365057106,1749431439196,-440.0,0.00021639,2]
[365057107,1749431439206,-184.984,0.000217,2]
[365057108,1749431439218,-440.0,0.00021712,2]
[365057109,1749431439232,-687.16,0.00021712,2]
[365057110,1749431439244,-208.52662516,0.00021841,6]
[365057111,1749431439256,-900.0,0.00021861,2]
[365057112,1749431439270,-440.0,0.00021913,2]
[365057113,1749431439283,-834.38,0.00021913,2]
[365057114,1749431439295,-440.0,0.00021913,2]
[365057115,1749431439307,-440.0,0.00021913,2]
[365057116,1749431439319,-483.97,0.00021913,2]
[365057117,1749431439329,-440.0,0.00021913,2]
[365057118,1749431439341,-495.55,0.00021913,2]
[365057119,1749431439354,-440.0,0.00021913,2]
[365057120,1749431439365,-440.0,0.00021913,2]
[365057121,1749431439381,-440.0,0.00021913,2]
[365057122,1749431439392,-440.0,0.00021913,2]
[365057123,1749431439403,-370.0,0.00021986,4]
[365057124,1749431439416,-687.16,0.00021986,4]
[365057125,1749431439427,-184.0,0.00022,4]
[365057126,1749431439439,-184.0,0.00022,4]
[365057127,1749431439451,-125.29371871,0.00022076,6]
[365057128,1749431439467,-83.23290645,0.00022076,6]
[365057129,1749431439478,-440.0,0.00022187,4]
[365057130,1749431439490,-834.38,0.00022187,4]
[365057131,1749431439501,-440.0,0.00022187,4]
[365057132,1749431439512,-440.0,0.00022187,4]
[365057133,1749431439524,-483.97,0.00022187,4]
[365057134,1749431439536,-379.57616425,0.00022187,4]
[365057135,1749431439552,-60.42383575,0.00022187,4]
[365057136,1749431439563,-319.70360869,0.00022187,4]
[365057137,1749431439578,-175.84639131,0.00022187,4]
[365057138,1749431439588,-440.0,0.00022187,4]
[365057139,1749431439599,-246.02662057,0.00022187,4]
[365057189,1749431440641,-636.05,0.00021365,2]
[365057191,1749431440652,-16.81879254,0.00021639,2]
[365057194,1749431440667,-619.23120746,0.00021639,2]
[365057196,1749431440680,-636.05,0.00021913,2]
[365057198,1749431440692,-193.97337943,0.00022187,4]
[365057201,1749431440706,-440.0,0.00022187,4]
[365057203,1749431440721,-440.0,0.00022187,4]
[365057205,1749431440733,-636.05,0.00022187,4]
[365057207,1749431440745,-687.16,0.0002226,4]
[365057210,1749431440757,-208.52662516,0.00022312,7]
[365057212,1749431440767,-546.72605437,0.00022345,2]
[365057214,1749431440778,-280.08861857,0.00022447,2]
[365057216,1749431440790,-440.0,0.00022461,4]
[365057218,1749431440800,-834.38,0.00022461,4]
[365057221,1749431440811,-440.0,0.00022461,4]
[365057223,1749431440821,-440.0,0.00022461,4]
[365057225,1749431440832,-483.97,0.00022461,4]
[365057227,1749431440843,-440.0,0.00022461,4]
[365057229,1749431440855,-347.60443812,0.00022461,4]
[365057314,1749431443437,-147.94556188,0.00022461,4]
[365057316,1749431443447,-440.0,0.00022461,4]
[365057318,1749431443459,-192.93196874,0.00022461,4]
[365057320,1749431443469,-440.0,0.00022461,4]
[365057322,1749431443480,-389.54,0.00022461,4]
[365057324,1749431443493,-58.55266612,0.00022461,4]
[365057326,1749431443507,-577.49733388,0.00022461,4]
[365057327,1749431443518,-500.0,0.0002252,2]
[365057328,1749431443528,-567.17373184,0.00022534,4]
[365057329,1749431443543,-119.98626816,0.00022534,4]
[365057330,1749431443554,-208.52662516,0.00022547,7]
[365057331,1749431443565,-405.0,0.00022692,2]
[365057332,1749431443576,-440.0,0.00022735,4]
[365057333,1749431443587,-834.38,0.00022735,4]
[365057334,1749431443599,-440.0,0.00022735,4]
[365057336,1749431443609,-440.0,0.00022735,4]
[365057337,1749431443620,-483.97,0.00022735,4]
[365057338,1749431443632,-440.0,0.00022735,4]
[365057340,1749431443643,-495.55,0.00022735,4]
[365057341,1749431443654,-147.57869823,0.00022735,4]
[365057342,1749431443669,-292.42130177,0.00022735,4]
[365057343,1749431443679,-440.0,0.00022735,4]
[365057344,1749431443691,-636.05,0.00022735,4]
[365057345,1749431443702,-208.52662516,0.00022782,7]
[365057346,1749431443715,-687.16,0.00022808,4]
[365057347,1749431443726,-500.0,0.00022883,2]
[365057348,1749431443737,-166.6003634,0.00022883,2]
[365057349,1749431443749,-500.0,0.00022883,2]
[365057350,1749431443760,-571.79990191,0.00022883,2]
[365057351,1749431443771,-2140.89511824,0.00022884,2]
[365057352,1749431443785,-2859.10488176,0.00022884,2]
[365057353,1749431443797,-207.4,0.00022884,2]
[365057354,1749431443808,-500.0,0.00022884,2]
[365057355,1749431443820,-307.09869753,0.00022884,2]
[365057356,1749431443831,-900.0,0.00022957,2]
[365057357,1749431443842,-440.0,0.00023009,4]
[365057358,1749431443853,-834.38,0.00023009,4]
[365057359,1749431443865,-440.0,0.00023009,4]
[365057360,1749431443875,-440.0,0.00023009,4]
[365057361,1749431443887,-483.97,0.00023009,4]
[365057362,1749431443898,-440.0,0.00023009,4]
[365057363,1749431443909,-495.55,0.00023009,4]
[365057364,1749431443920,-440.0,0.00023009,4]
[365057365,1749431443931,-440.0,0.00023009,4]
[365057366,1749431443942,-636.05,0.00023009,4]
[365057367,1749431443954,-208.52662516,0.00023018,8]
[365057368,1749431443964,-500.0,0.00023068,2]
[365057369,1749431443975,-687.16,0.00023082,4]
[365057370,1749431443986,-587.0,0.00023085,2]
[365057371,1749431443998,-634.72,0.00023195,2]
[365057372,1749431444009,-208.52662516,0.00023253,8]
[365057373,1749431444020,-440.0,0.00023283,4]
[365057374,1749431444031,-834.38,0.00023283,4]
[365057375,1749431444043,-440.0,0.00023283,4]
[365057376,1749431444054,-440.0,0.00023283,4]
[365057377,1749431444065,-483.97,0.00023283,4]
[365057378,1749431444075,-440.0,0.00023283,4]
[365057379,1749431444086,-495.55,0.00023283,4]
[365057380,1749431444097,-440.0,0.00023283,4]
[365057381,1749431444278,-440.0,0.00023283,4]
[365057382,1749431444289,-636.05,0.00023283,4]
[365057383,1749431444299,-687.16,0.00023356,4]
[365057384,1749431444309,-208.52662516,0.00023488,9]
[365057385,1749431444319,-440.0,0.00023557,4]
[365057386,1749431444328,-834.38,0.00023557,4]
[365057387,1749431444337,-440.0,0.00023557,4]
[365057388,1749431444347,-193.27903698,0.00023557,4]
[365057389,1749431444357,-483.97,0.00023557,4]
[365057390,1749431444366,-440.0,0.00023557,4]
[365057391,1749431444389,-495.55,0.00023557,4]
[365057392,1749431444400,-251.1670333,0.00023557,4]
[365057393,1749431444411,-440.0,0.00023557,4]
[365057394,1749431444423,-636.05,0.00023557,4]
[365057395,1749431444433,-36.20147346,0.00023561,2]
[365057396,1749431444448,-163.79852654,0.00023561,2]
[365057397,1749431444458,-200.0,0.00023561,2]
[365057398,1749431444469,-200.0,0.00023561,2]
[365057399,1749431444479,-200.0,0.00023561,2]
[365057400,1749431444490,-200.0,0.00023561,2]
[365057401,1749431444500,-200.0,0.00023561,2]
[365057402,1749431444511,-200.0,0.00023561,2]
[365057403,1749431444521,-200.0,0.00023561,2]
[365057404,1749431444532,-600.0,0.00023579,2]
[365057405,1749431444543,-184.0,0.000236,5]
[365057406,1749431444553,-184.0,0.000236,5]
[365057407,1749431444564,-687.16,0.0002363,4]
[365057408,1749431444574,-963.0,0.00023652,2]
[365057409,1749431444585,-652.0,0.00023652,2]
[365057410,1749431444595,-2159.0,0.00023652,2]
[365057411,1749431444606,-162.136074,0.00023699,2]
[365057412,1749431444616,-162.70720017,0.00023699,2]
[365057413,1749431444627,-208.52662516,0.00023724,9]
[365057414,1749431444638,-1968.23159024,0.00023796,2]
[365057453,1749431446575,-134.27523231,0.00023796,2]
[365057455,1749431446586,-1329.00653995,0.00023799,2]
[365057977,1749432632844,-156.23,0.00018218,2]
[365057978,1749432632854,-300.0,0.00018999,2]
[365057979,1749432632864,-300.0,0.00018999,2]
[365057980,1749432632873,-5839.16769195,0.00019,2]
[365057981,1749432632886,-281.70457944,0.00019,2]
[365057982,1749432632938,-313.73916419,0.00019,2]
[365058042,1749432638639,-13642.63879257,0.00019,2]
[365058043,1749432638652,-2827.02347375,0.00019,2]
[365058044,1749432638665,-7652.26718814,0.00019,2]
[365058045,1749432638676,-440.0,0.00019178,2]
[365058046,1749432638685,-440.0,0.00019178,2]
[365058047,1749432638695,-500.0,0.00019178,2]
[365058048,1749432638706,-575.37,0.00019178,2]
[365058049,1749432638716,-440.0,0.00019178,2]
[365058050,1749432638726,-153.92350012,0.00019178,2]
[365058051,1749432638738,-286.07649988,0.00019178,2]
[365058052,1749432638748,-131.04326253,0.00019178,2]
[365058053,1749432638761,-308.95673747,0.00019178,2]
[365058054,1749432638771,-1345.84,0.00019178,2]
[365058055,1749432638780,-440.0,0.00019178,2]
[365058056,1749432638790,-282.21719451,0.00019178,2]
[365058057,1749432638801,-157.78280549,0.00019178,2]
[365058058,1749432638811,-440.0,0.00019178,2]
[365058059,1749432638820,-440.0,0.00019178,2]
[365058060,1749432638830,-197.60896386,0.00019178,2]
[365058061,1749432638842,-242.39103614,0.00019178,2]
[365058062,1749432638851,-202.60847292,0.00019178,2]
[365058063,1749432638865,-237.39152708,0.00019178,2]
[365058064,1749432638874,-265.95229561,0.00019178,2]
[365058065,1749432639030,-440.0,0.00019178,2]
[365058066,1749432639050,-13.41111058,0.00019178,2]
[365058067,1749432639064,-858.03888942,0.00019178,2]
[365058068,1749432639074,-751.69,0.00019178,2]
[365058069,1749432639085,-502.87,0.00019178,2]
[365058070,1749432639094,-1282.17,0.00019178,2]
[365058071,1749432639104,-577.64191064,0.00019178,2]
[365058072,1749432639121,-763.57808936,0.00019178,2]
[365058073,1749432639131,-440.0,0.00019178,2]
[365058074,1749432639141,-575.95,0.00019178,2]
[365058075,1749432639151,-440.0,0.00019178,2]
[365058076,1749432639161,-492.17213166,0.00019178,2]
[365058077,1749432639175,-464.48327864,0.00019178,2]
[365058078,1749432639185,-440.0,0.00019178,2]
[365058079,1749432639195,-457.27772011,0.00019178,2]
[365058080,1749432639205,-481.5,0.00019178,2]
[365058081,1749432639215,-440.0,0.00019452,2]
[365058082,1749432639224,-440.0,0.00019452,2]
[365058083,1749432639234,-575.37,0.00019452,2]
[365058084,1749432639244,-549.07609182,0.00019452,2]
[365058085,1749432639254,-440.0,0.00019452,2]
[365058086,1749432639264,-1345.84,0.00019452,2]
[365058087,1749432639273,-440.0,0.00019452,2]
[365058088,1749432639285,-440.0,0.00019452,2]
[365058089,1749432639304,-440.0,0.00019452,2]
[365058090,1749432639314,-440.0,0.00019452,2]
[365058091,1749432639323,-440.0,0.00019452,2]
[365058092,1749432639334,-871.45,0.00019452,2]
[365058093,1749432639343,-751.69,0.00019452,2]
[365058094,1749432639355,-502.87,0.00019452,2]
[365058095,1749432639365,-1282.17,0.00019452,2]
[365058096,1749432639375,-1341.22,0.00019452,2]
[365058097,1749432639386,-440.0,0.00019452,2]
[365058098,1749432639397,-575.95,0.00019452,2]
[365058099,1749432639409,-440.0,0.00019452,2]
[365058100,1749432639420,-519.47761845,0.00019452,2]
[365058101,1749432639429,-481.5,0.00019452,2]
[365058102,1749432639438,-214.2962837,0.0001954,2]
[365058103,1749432639448,-440.0,0.00019726,2]
[365058104,1749432639457,-440.0,0.00019726,2]
[365058105,1749432639467,-575.37,0.00019726,2]
[365058106,1749432639476,-440.0,0.00019726,2]
[365058107,1749432639486,-1345.84,0.00019726,2]
[365058108,1749432639495,-440.0,0.00019726,2]
[365058109,1749432639504,-440.0,0.00019726,2]
[365058110,1749432639514,-440.0,0.00019726,2]
[365058111,1749432639524,-539.37,0.00019726,2]
[365058112,1749432639533,-440.0,0.00019726,2]
[365058113,1749432639543,-871.45,0.00019726,2]
[365058114,1749432639552,-751.69,0.00019726,2]
[365058115,1749432639562,-502.87,0.00019726,2]
[365058116,1749432639572,-1282.17,0.00019726,2]
[365058117,1749432639581,-1341.22,0.00019726,2]
[365058118,1749432639590,-440.0,0.00019726,2]
[365058119,1749432639600,-575.95,0.00019726,2]
[365058120,1749432639609,-440.0,0.00019726,2]
[365058121,1749432639618,-481.5,0.00019726,2]
[365058122,1749432639627,-312.46,0.00019874,2]
[365058123,1749432639637,-629.90256819,0.000199,2]
[365058124,1749432639646,-440.0,0.0002,2]
[365058125,1749432639656,-440.0,0.0002,2]
[365058126,1749432639665,-575.37,0.0002,2]
[365058127,1749432639674,-411.4,0.0002,2]
[365058128,1749432639684,-1345.84,0.0002,2]
[365058129,1749432639693,-440.0,0.0002,2]
[365058130,1749432639702,-440.0,0.0002,2]
[365058131,1749432639712,-440.0,0.0002,2]
[365058132,1749432639721,-440.0,0.0002,2]
[365058133,1749432639730,-871.45,0.0002,2]
[365058134,1749432639739,-751.69,0.0002,2]
[365058135,1749432639749,-502.87,0.0002,2]
[365058136,1749432639758,-1282.17,0.0002,2]
[365058137,1749432639768,-1341.22,0.0002,2]
[365058138,1749432639777,-440.0,0.0002,2]
[365058139,1749432639786,-575.95,0.0002,2]
[365058140,1749432639797,-440.0,0.0002,2]
[365058141,1749432639808,-481.5,0.0002,2]
[365058142,1749432639819,-629.90256808,0.00020072,2]
[365058143,1749432639829,-184.984,0.00020131,2]
[365058144,1749432639838,-629.90256808,0.00020245,2]
[365058145,1749432639848,-209.31029207,0.00020272,2]
[365058146,1749432639858,-500.0,0.00020272,2]
[365058147,1749432639868,-643.26525028,0.00020272,2]
[365058148,1749432639878,-440.0,0.00020273,2]
[365058149,1749432639888,-440.0,0.00020273,2]
[365058150,1749432639898,-575.37,0.00020273,2]
[365058151,1749432639909,-1345.84,0.00020273,2]
[365058152,1749432639920,-440.0,0.00020273,2]
[365058153,1749432639929,-440.0,0.00020273,2]
[365058154,1749432639939,-440.0,0.00020273,2]
[365058155,1749432639950,-440.0,0.00020273,2]
[365058156,1749432639959,-871.45,0.00020273,2]
[365058157,1749432639971,-751.69,0.00020273,2]
[365058158,1749432639991,-502.87,0.00020273,2]
[365058159,1749432640001,-1282.17,0.00020273,2]
[365058160,1749432640011,-1341.22,0.00020273,2]
[365058161,1749432640020,-440.0,0.00020273,2]
[365058162,1749432640030,-575.95,0.00020273,2]
[365058163,1749432640040,-440.0,0.00020273,2]
[365058164,1749432640052,-481.5,0.00020273,2]
[365058165,1749432640062,-629.90256808,0.00020417,3]
[365058166,1749432640071,-378.0,0.000205,14]
[365058167,1749432640081,-509.7816681,0.00020529,2]
[365058168,1749432640093,-500.0,0.00020541,2]
[365058169,1749432640104,-420.0,0.00020542,2]
[365058170,1749432640114,-420.0,0.00020542,2]
[365058171,1749432640124,-420.0,0.00020542,2]